bitfinex/quotes_BTCUSD_20240821
["timestamp","ask_amount","ask_price","bid_price","bid_amount"]
[1724259038665,0.001824,59929.0,59928.0,0.007]
[1724259039820,1.055644,59929.0,59928.0,0.006]
[1724259040046,1.055644,59929.0,59928.0,0.007]
[1724259040308,1.078644,59929.0,59928.0,0.006]
[1724259040818,1.077644,59929.0,59928.0,0.005]
[1724259041043,0.834332,59928.0,59927.0,0.00026449]
[1724259041288,0.857332,59928.0,59927.0,0.00026449]
[1724259041535,0.523599,59928.0,59927.0,0.00026449]
[1724259041784,0.166866,59928.0,59927.0,0.00026449]
[1724259042031,0.166866,59928.0,59927.0,0.00126449]
[1724259042268,0.167688,59929.0,59928.0,0.001]
[1724259042762,0.167688,59929.0,59927.0,0.00026449]
[1724259043015,0.167688,59929.0,59927.0,0.00126449]
[1724259043016,0.166866,59928.0,59927.0,0.00126449]
[1724259043765,0.166866,59928.0,59927.0,0.00026449]
[1724259044498,0.857332,59928.0,59927.0,0.00026449]
[1724259045388,0.857332,59928.0,59927.0,0.00126449]
[1724259045620,0.001824,59929.0,59928.0,0.001]
[1724259045847,0.168688,59929.0,59928.0,0.001]
[1724259046305,0.167688,59929.0,59928.0,0.001]
[1724259046990,0.500599,59928.0,59927.0,0.00026449]
[1724259047731,0.166866,59928.0,59927.0,0.00126449]
[1724259047950,0.166866,59928.0,59927.0,0.00026449]
[1724259047951,0.500599,59928.0,59927.0,0.00026449]
[1724259048176,0.500599,59928.0,59927.0,0.00226449]
[1724259048679,0.500599,59928.0,59927.0,0.0022645]
[1724259049094,0.500599,59928.0,59927.0,0.0042645]
[1724259049799,0.500599,59928.0,59927.0,0.0032645]
[1724259050486,0.500599,59928.0,59927.0,0.0042645]
[1724259051402,0.834332,59928.0,59927.0,0.0042645]
[1724259051628,0.000824,59929.0,59927.0,0.0042645]
[1724259051868,0.501416,59929.0,59928.0,0.001]
[1724259052105,0.501416,59929.0,59928.0,0.0012645]
[1724259053054,0.000824,59929.0,59928.0,0.0012645]
[1724259053284,0.000824,59929.0,59928.0,0.1766645]
[1724259053973,0.000824,59929.0,59928.0,0.3435305]
[1724259054198,0.001824,59929.0,59928.0,0.1876645]
[1724259054467,0.001824,59929.0,59928.0,0.3545305]
[1724259054697,0.002824,59929.0,59928.0,0.3555305]
[1724259056379,0.002824,59929.0,59928.0,0.6892635]
[1724259057384,0.002824,59929.0,59928.0,0.68926351]
[1724259058848,0.002824,59929.0,59928.0,0.35553051]
[1724259059112,0.002824,59929.0,59928.0,0.68926351]
[1724259059590,0.169688,59929.0,59928.0,0.01326451]
[1724259059838,0.002824,59929.0,59928.0,0.01326451]
[1724259060085,0.002824,59929.0,59928.0,0.18013051]
[1724259060345,0.002824,59929.0,59928.0,0.01326451]
[1724259060594,0.002824,59929.0,59928.0,0.18013051]
[1724259061071,0.002824,59929.0,59928.0,0.01326451]
[1724259061531,0.002824,59929.0,59928.0,0.18013051]
[1724259062964,0.002824,59929.0,59928.0,0.01326451]
[1724259063194,0.169688,59929.0,59928.0,0.01326451]
[1724259063651,0.002824,59929.0,59928.0,0.01326451]
[1724259064131,0.169688,59929.0,59928.0,0.01326451]
[1724259064360,0.002824,59929.0,59928.0,0.01326451]
[1724259065510,0.002824,59929.0,59928.0,0.75216351]
[1724259065749,0.002824,59929.0,59928.0,1.09786649]
[1724259066026,0.100824,59946.0,59928.0,1.09786649]
[1724259066027,0.000824,59946.0,59945.0,0.167819]
[1724259066282,0.000824,59946.0,59945.0,1.15399238]
[1724259066603,0.000824,59946.0,59945.0,1.41386449]
[1724259066744,0.000824,59946.0,59945.0,2.12045341]
[1724259067004,0.000824,59946.0,59945.0,2.2433045]
[1724259067228,0.000824,59946.0,59945.0,2.1204534]
[1724259067443,0.001824,59946.0,59945.0,2.2314534]
[1724259067673,0.001824,59946.0,59945.0,2.23145339]
[1724259067905,0.000824,59946.0,59945.0,2.21845339]
[1724259068126,0.001824,59946.0,59945.0,2.23145339]
[1724259068335,0.001824,59946.0,59945.0,2.25050526]
[1724259068580,0.001824,59946.0,59945.0,2.25250526]
[1724259068813,0.001824,59946.0,59945.0,2.24950526]
[1724259069031,0.002824,59946.0,59945.0,2.26050526]
[1724259069251,0.001824,59946.0,59945.0,2.24850526]
[1724259069485,0.000824,59946.0,59945.0,2.36218735]
[1724259069723,0.000824,59946.0,59945.0,2.25350526]
[1724259069998,0.001824,59946.0,59945.0,2.26751395]
[1724259070226,0.001824,59946.0,59945.0,2.39019604]
[1724259070452,0.001824,59946.0,59945.0,2.36562983]
[1724259070678,0.001824,59946.0,59945.0,2.36562982]
[1724259071251,0.19373,59972.0,59945.0,2.36562982]
[1724259071252,0.000823,59973.0,59972.0,0.1216]
[1724259071461,0.000823,59973.0,59972.0,1.56925112]
[1724259071723,0.000823,59973.0,59972.0,2.23202159]
[1724259071967,0.000823,59973.0,59972.0,1.91192158]
[1724259072186,0.000823,59973.0,59972.0,1.22478151]
[1724259072418,0.000823,59973.0,59972.0,0.75709944]
[1724259072643,0.000823,59973.0,59972.0,0.66549944]
[1724259072953,0.000823,59973.0,59972.0,0.00126446]
[1724259073201,0.167564,59973.0,59972.0,0.00026445]
[1724259073419,0.167564,59973.0,59972.0,0.01426445]
[1724259073645,0.167564,59973.0,59972.0,0.00026445]
[1724259074079,0.83453,59973.0,59972.0,0.01526445]
[1724259074355,0.83453,59973.0,59972.0,0.00126445]
[1724259074356,0.85753,59973.0,59972.0,0.00126445]
[1724259074814,0.524047,59973.0,59972.0,0.00126445]
[1724259075515,0.524047,59973.0,59972.0,0.00026445]
[1724259075798,0.023823,59973.0,59972.0,0.00126445]
[1724259076038,0.023823,59973.0,59972.0,0.00226445]
[1724259076039,0.000823,59973.0,59972.0,0.00226445]
[1724259076746,0.000823,59973.0,59972.0,0.00126445]
[1724259076969,0.000823,59973.0,59972.0,0.00026445]
[1724259077439,0.000823,59973.0,59972.0,0.00426445]
[1724259078405,0.167564,59973.0,59972.0,0.00326445]
[1724259078627,0.190564,59973.0,59972.0,0.00326445]
[1724259079106,0.85753,59973.0,59972.0,0.00326445]
[1724259079399,0.85753,59973.0,59972.0,0.00226445]
[1724259079400,0.524047,59973.0,59972.0,0.00226445]
[1724259079660,0.524047,59973.0,59972.0,0.00326445]
[1724259079913,0.524047,59973.0,59972.0,0.00126445]
[1724259081323,0.85753,59973.0,59972.0,0.00126445]
[1724259081562,1.20773298,59973.0,59972.0,0.00126445]
[1724259081780,0.710247,59973.0,59972.0,0.00126445]
[1724259082260,1.04373,59973.0,59972.0,0.00126445]
[1724259082944,1.04373,59973.0,59972.0,0.00026445]
[1724259083177,1.04573,59973.0,59972.0,0.00026445]
[1724259083397,0.714247,59973.0,59972.0,0.00026445]
[1724259083846,1.04573,59973.0,59972.0,0.00026445]
[1724259084067,1.04373,59973.0,59972.0,0.00026445]
[1724259084290,1.04773,59973.0,59972.0,0.00026445]
[1724259086003,1.77421598,59973.0,59972.0,0.00026445]
[1724259086226,1.87421598,59973.0,59972.0,0.00026445]
[1724259086460,1.87521598,59973.0,59972.0,0.00026445]
[1724259086910,1.87421598,59973.0,59972.0,0.00026445]
[1724259087586,1.87821598,59973.0,59972.0,0.00026445]
[1724259088537,0.006823,59973.0,59972.0,0.50049645]
[1724259088758,0.4233,59993.0,59979.0,0.834625]
[1724259089006,0.1864,59998.0,59979.0,1.41662798]
[1724259089259,0.1864,59998.0,59984.0,0.501133]
[1724259089505,0.1864,59998.0,59984.0,1.33197998]
[1724259089741,0.0002,59999.0,59984.0,1.33197998]
[1724259089742,0.0002,59999.0,59984.0,1.55617998]
[1724259089996,0.16687,59999.0,59984.0,1.55617998]
[1724259090214,0.33354,59999.0,59984.0,1.22275798]
[1724259090452,0.166871,59999.0,59984.0,1.5564444]
[1724259090689,0.166871,59999.0,59984.0,1.2230224]
[1724259090690,0.0002,59999.0,59984.0,1.2230224]
[1724259090912,0.00923,59985.0,59984.0,1.5814444]
[1724259091141,0.00923,59985.0,59984.0,1.5744444]
[1724259091368,0.0002,59999.0,59987.0,1.167917]
[1724259091615,0.0002,59999.0,59987.0,1.33218439]
[1724259091840,0.0002,59999.0,59987.0,1.33218438]
[1724259092803,0.0002,59999.0,59987.0,1.33218437]
[1724259093320,0.0002,59999.0,59987.0,1.34618437]
[1724259093584,0.0002,59999.0,59987.0,1.55338437]
[1724259094286,0.00923,59988.0,59987.0,1.58138437]
[1724259094555,0.00821,60011.0,60005.0,1.258367]
[1724259094829,0.00821,60011.0,60005.0,1.42136998]
[1724259095318,0.00821,60011.0,60005.0,1.08806498]
[1724259095752,0.00821,60011.0,60005.0,1.42136998]
[1724259096458,0.00821,60011.0,60005.0,1.43536998]
[1724259097247,0.166814,60019.0,60018.0,0.001]
[1724259097248,0.0002,60019.0,60018.0,0.001]
[1724259097707,0.0002,60019.0,60016.0,0.001]
[1724259097924,0.0002,60019.0,60015.0,0.166624]
[1724259097925,0.0002,60019.0,60018.0,0.001]
[1724259099578,0.0002,60019.0,60018.0,0.011]
[1724259100532,0.16455901,60023.0,60018.0,0.184615]
[1724259100764,0.400991,60027.0,60026.0,0.001]
[1724259101924,0.423991,60027.0,60026.0,0.001]
[1724259102210,0.34078432,60032.0,60026.0,0.002]
[1724259102211,0.2307,60032.0,60026.0,0.002]
[1724259102506,0.02612813,60038.0,60032.0,0.167577]
[1724259102763,0.02612813,60038.0,60032.0,0.001]
[1724259103019,0.333124,60038.0,60032.0,0.001]
[1724259103255,0.333321,60039.0,60032.0,0.001]
[1724259103471,0.333321,60039.0,60035.0,0.001]
[1724259103472,0.48324001,60036.0,60035.0,0.001]
[1724259104198,0.333321,60039.0,60038.0,0.001]
[1724259104434,0.499879,60039.0,60038.0,0.001]
[1724259104943,0.499699,60036.0,60035.0,0.009]
[1724259105166,0.166566,60036.0,60035.0,0.009]
[1724259105393,1.165965,60036.0,60035.0,0.008]
[1724259105625,1.601565,60036.0,60035.0,0.008]
[1724259105886,1.76556798,60036.0,60035.0,0.008]
[1724259106109,2.12616798,60036.0,60035.0,0.008]
[1724259106353,1.39333598,60036.0,60035.0,0.009]
[1724259106598,1.55990198,60036.0,60035.0,0.009]
[1724259106853,0.56172315,60036.0,60021.0,0.001]
[1724259107093,0.023,60035.0,60034.0,0.001]
[1724259107346,0.0002,60039.0,60037.0,0.001]
[1724259107347,0.166561,60038.0,60037.0,0.001]
[1724259107586,0.0002,60039.0,60032.0,0.001]
[1724259107843,0.0002,60039.0,60029.0,0.499754]
[1724259107844,0.166575,60033.0,60031.0,0.001]
[1724259108084,0.166575,60033.0,60027.0,0.16659]
[1724259108085,0.499749,60030.0,60029.0,0.001]
[1724259108563,0.166591,60027.0,60024.0,0.4742]
[1724259108808,0.16420298,60039.0,60024.0,0.4742]
[1724259108809,0.555073,60029.0,60024.0,0.4742]
[1724259109055,0.2219,60029.0,60024.0,0.4742]
[1724259109310,0.02612265,60035.0,60024.0,0.4742]
[1724259109311,0.02612265,60035.0,60024.0,0.63820298]
[1724259109552,0.166569,60035.0,60027.0,0.33318]
[1724259109801,0.166572,60034.0,60029.0,0.166585]
[1724259110050,0.166578,60032.0,60027.0,0.166591]
[1724259110309,0.023,60034.0,60026.0,0.166593]
[1724259110310,0.166581,60031.0,60026.0,0.166593]
[1724259111036,0.166581,60031.0,60029.0,0.007]
[1724259111283,0.166583,60030.0,60029.0,0.007]
[1724259111541,0.166597,60025.0,60024.0,0.4812]
[1724259111772,0.16659,60028.0,60024.0,0.4742]
[1724259111985,0.166586,60029.0,60026.0,0.009]
[1724259112234,0.166578,60032.0,60027.0,0.16659]
[1724259112493,0.166578,60032.0,60026.0,0.004]
[1724259112494,0.333183,60027.0,60026.0,0.004]
[1724259112740,1.278957,60027.0,60026.0,0.004]
[1724259112968,1.61214,60027.0,60026.0,0.004]
[1724259113228,0.333192,60026.0,60018.0,0.04858602]
[1724259113459,0.612591,60027.0,60026.0,0.006]
[1724259113700,1.278957,60027.0,60026.0,0.006]
[1724259114371,0.166591,60027.0,60026.0,0.006]
[1724259114596,0.166595,60026.0,60019.0,0.333222]
[1724259114823,0.166595,60026.0,60021.0,0.166607]
[1724259115554,0.333187,60027.0,60019.0,0.166613]
[1724259115822,0.56366,60032.0,60018.0,0.21520102]
[1724259115823,0.166604,60023.0,60018.0,0.21520102]
[1724259116070,0.166606,60022.0,60019.0,0.009]
[1724259116308,0.166606,60022.0,60016.0,0.40612004]
[1724259116309,0.166606,60022.0,60016.0,0.333241]
[1724259116545,0.356192,60026.0,60021.0,0.009]
[1724259116799,0.356192,60026.0,60021.0,0.017]
[1724259116800,0.166602,60024.0,60021.0,0.017]
[1724259117070,0.0312,60026.0,60021.0,0.017]
[1724259117281,0.0082,60026.0,60025.0,0.166597]
[1724259117504,0.2305,60032.0,60025.0,0.499789]
[1724259117757,0.166581,60031.0,60026.0,0.166594]
[1724259117988,0.397077,60032.0,60027.0,0.166591]
[1724259118230,0.397077,60032.0,60025.0,0.333194]
[1724259118231,0.16658,60031.0,60025.0,0.333194]
[1724259118470,0.16658,60031.0,60026.0,0.166593]
[1724259118721,0.333147,60034.0,60026.0,0.333185]
[1724259118959,0.166579,60032.0,60027.0,0.16659]
[1724259119418,0.333156,60032.0,60025.0,0.002]
[1724259119710,0.333156,60032.0,60021.0,0.008]
[1724259119711,0.2232,60030.0,60021.0,0.008]
[1724259119946,0.2232,60030.0,60017.0,0.07294626]
[1724259119947,0.166608,60021.0,60017.0,0.21524984]
[1724259120204,0.49981,60023.0,60017.0,0.21524984]
[1724259120440,0.1666,60024.0,60019.0,0.166612]
[1724259120688,0.1666,60024.0,60018.0,0.166614]
[1724259120689,0.166601,60024.0,60018.0,0.166614]
[1724259120938,0.166601,60024.0,60019.0,0.166613]
[1724259121170,0.166601,60024.0,60021.0,0.004]
[1724259121656,0.166601,60024.0,60019.0,0.166612]
[1724259121894,0.166603,60023.0,60019.0,0.01]
[1724259122338,0.166605,60023.0,60019.0,0.022]
[1724259122596,0.166607,60022.0,60019.0,0.022]
[1724259122839,0.166601,60024.0,60019.0,0.188613]
[1724259123081,0.1817,60029.0,60019.0,0.022]
[1724259123300,0.1817,60029.0,60019.0,0.012]
[1724259123301,0.166611,60020.0,60019.0,0.012]
[1724259124097,0.166611,60020.0,60016.0,0.0009031]
[1724259124340,0.166612,60020.0,60016.0,0.0009031]
[1724259124526,0.166612,60020.0,60019.0,0.013]
[1724259124779,0.166612,60020.0,60016.0,0.0009031]
[1724259125008,0.166612,60020.0,60019.0,0.019]
[1724259125285,0.166612,60020.0,60019.0,0.005]
[1724259126253,0.333217,60021.0,60016.0,0.0009031]
[1724259126254,0.166607,60022.0,60017.0,0.166618]
[1724259126705,0.16661,60021.0,60019.0,0.014]
[1724259127189,0.16661,60021.0,60016.0,0.1675241]
[1724259127453,0.166611,60020.0,60019.0,0.014]
[1724259127669,0.166611,60020.0,60017.0,0.012]
[1724259127893,0.166608,60022.0,60019.0,0.014]
[1724259128133,0.166608,60021.0,60016.0,0.1675241]
[1724259128353,0.166608,60021.0,60019.0,0.013]
[1724259129008,0.166608,60021.0,60019.0,0.027]
[1724259129445,0.166611,60020.0,60019.0,0.027]
[1724259129659,0.166611,60020.0,60019.0,0.014]
[1724259130143,0.166611,60020.0,60019.0,0.026]
[1724259130409,0.166611,60020.0,60019.0,0.012]
[1724259130626,0.166611,60020.0,60019.0,0.014]
[1724259130845,0.166611,60020.0,60016.0,0.1675241]
[1724259131065,0.333203,60024.0,60019.0,0.028]
[1724259131277,0.023,60023.0,60019.0,0.028]
[1724259131493,0.166611,60020.0,60019.0,0.028]
[1724259131945,0.166611,60020.0,60019.0,0.0149031]
[1724259132165,0.499833,60020.0,60019.0,0.0269031]
[1724259132845,0.499833,60020.0,60019.0,0.0129031]
[1724259133500,0.499833,60020.0,60019.0,0.0009031]
[1724259133726,0.499833,60020.0,60019.0,0.04981787]
[1724259133940,0.499833,60020.0,60019.0,0.06381787]
[1724259134151,0.499833,60020.0,60019.0,0.07781787]
[1724259134582,0.499833,60020.0,60019.0,0.52076257]
[1724259135031,0.166611,60020.0,60019.0,0.52076257]
[1724259135601,0.166611,60020.0,60019.0,0.39847563]
[1724259135707,0.166611,60020.0,60019.0,0.52076257]
[1724259136630,0.166611,60020.0,60019.0,0.39847563]
[1724259137130,0.166611,60020.0,60019.0,0.49664288]
[1724259137131,1.1687576,60020.0,60019.0,0.49664288]
[1724259137356,1.607977,60020.0,60019.0,0.0289031]
[1724259137608,2.10520198,60020.0,60019.0,0.0289031]
[1724259138083,2.26918076,60020.0,60019.0,0.0009031]
[1724259138330,2.54142398,60020.0,60019.0,0.0009031]
[1724259138575,2.54142398,60020.0,60019.0,0.0019031]
[1724259138821,2.54920696,60020.0,60019.0,0.0019031]
[1724259139062,2.55020696,60020.0,60019.0,0.0019031]
[1724259139296,2.73726683,60020.0,60019.0,0.0019031]
[1724259139547,2.57328805,60020.0,60019.0,0.0019031]
[1724259140252,2.57628805,60020.0,60019.0,0.0009031]
[1724259140480,2.57728805,60020.0,60019.0,0.0009031]
[1724259140768,2.54720696,60020.0,60019.0,0.0009031]
[1724259140995,2.57628832,60020.0,60019.0,0.0019031]
[1724259141215,2.58128832,60020.0,60019.0,0.0029031]
[1724259141447,2.55520696,60020.0,60019.0,0.0029031]
[1724259141699,2.553309,60017.0,60016.0,0.0009031]
[1724259141943,2.50707398,60017.0,60016.0,0.0009031]
[1724259142432,2.50307398,60017.0,60016.0,0.0009031]
[1724259143146,2.17183598,60017.0,60016.0,0.0019031]
[1724259143450,1.509633,60017.0,60016.0,0.0019031]
[1724259143700,0.835095,60017.0,60016.0,0.0019031]
[1724259143922,0.833095,60017.0,60016.0,0.0009031]
[1724259144144,0.837095,60017.0,60016.0,0.0029031]
[1724259144604,0.833095,60017.0,60016.0,0.0009031]
[1724259144836,0.856095,60017.0,60016.0,0.0029031]
[1724259145995,0.856095,60017.0,60016.0,0.0039031]
[1724259146453,0.189619,60017.0,60016.0,0.0039031]
[1724259146689,0.166619,60017.0,60016.0,0.0039031]
[1724259147194,0.499857,60017.0,60016.0,0.0039031]
[1724259147427,0.499857,60017.0,60016.0,0.0029031]
[1724259147428,0.833095,60017.0,60016.0,0.0029031]
[1724259147663,0.833095,60017.0,60016.0,0.0009031]
[1724259147914,1.189333,60017.0,60016.0,0.0069031]
[1724259148142,1.189333,60017.0,60016.0,0.0029031]
[1724259148370,1.78093598,60017.0,60016.0,0.0029031]
[1724259149048,1.78093598,60017.0,60016.0,0.0049031]
[1724259149288,0.522857,60017.0,60016.0,0.0029031]
[1724259149519,0.522857,60017.0,60016.0,0.0039031]
[1724259149777,0.25692606,60022.0,60016.0,0.1705241]
[1724259149778,0.166611,60020.0,60016.0,0.1705241]
[1724259150015,0.02612606,60022.0,60016.0,0.0039031]
[1724259150237,0.166619,60017.0,60016.0,0.0009031]
[1724259150476,1.11498951,60017.0,60016.0,0.0009031]
[1724259150705,1.068895,60017.0,60016.0,0.0009031]
[1724259150917,1.063895,60017.0,60016.0,0.0009031]
[1724259151188,1.420133,60017.0,60016.0,0.0009031]
[1724259151427,1.58413598,60017.0,60016.0,0.0009031]
[1724259151647,1.76473598,60017.0,60016.0,0.0009031]
[1724259151894,1.76473598,60017.0,60016.0,0.0029031]
[1724259153094,1.76473598,60017.0,60016.0,0.0039031]
[1724259153347,2.26195276,60017.0,60016.0,0.0039031]
[1724259153576,2.36195276,60017.0,60016.0,0.0039031]
[1724259154053,2.36195276,60017.0,60016.0,0.0029031]
[1724259154312,2.36495276,60017.0,60016.0,0.0029031]
[1724259154533,2.37277092,60017.0,60016.0,0.0029031]
[1724259155291,2.37277092,60017.0,60016.0,0.0009031]
[1724259155536,2.21179214,60017.0,60016.0,0.0009031]
[1724259155761,2.23787416,60017.0,60016.0,0.0009031]
[1724259155996,2.2374731,60017.0,60016.0,0.0009031]
[1724259156243,2.5737111,60017.0,60016.0,0.0009031]
[1724259156468,2.73768988,60017.0,60016.0,0.0009031]
[1724259156693,2.5687111,60017.0,60016.0,0.0009031]
[1724259156934,2.5697111,60017.0,60016.0,0.0019031]
[1724259157208,2.5737111,60017.0,60016.0,0.0019031]
[1724259157696,2.5717111,60017.0,60016.0,0.0019031]
[1724259157944,2.5737111,60017.0,60016.0,0.0029031]
[1724259159150,2.122102,60014.0,60013.0,0.00026429]
[1724259159417,2.861787,60014.0,60013.0,0.00026429]
[1724259159840,0.833375,59997.0,59996.0,0.49229154]
[1724259160097,0.856375,59997.0,59996.0,0.49229154]
[1724259160324,0.500082,59990.0,59989.0,0.4742]
[1724259160840,0.166704,59987.0,59985.0,0.2386]
[1724259161359,0.166705,59986.0,59985.0,0.2386]
[1724259163285,0.166705,59986.0,59985.0,0.2526]
[1724259163526,0.166705,59986.0,59985.0,0.2386]
[1724259163775,0.167705,59986.0,59985.0,0.2426]
[1724259163998,0.168705,59986.0,59985.0,0.2566]
[1724259164221,0.835527,59986.0,59985.0,0.018]
[1724259165362,0.834527,59986.0,59985.0,0.014]
[1724259165832,0.858527,59986.0,59985.0,0.025]
[1724259166081,1.191938,59986.0,59985.0,0.025]
[1724259166301,1.191938,59986.0,59985.0,0.011]
[1724259166302,1.190938,59986.0,59985.0,0.011]
[1724259166775,1.190938,59986.0,59985.0,0.023]
[1724259166776,1.191938,59986.0,59985.0,0.023]
[1724259167956,1.190938,59986.0,59985.0,0.011]
[1724259168171,0.001,59986.0,59985.0,0.2558]
[1724259168396,0.166701,59988.0,59985.0,0.2457031]
[1724259168624,0.166698,59989.0,59985.0,0.2457031]
[1724259168887,0.166698,59989.0,59985.0,0.4164101]
[1724259169111,0.33338,59992.0,59985.0,0.2497031]
[1724259169331,0.166687,59993.0,59988.0,0.333399]
[1724259169596,0.166687,59993.0,59987.0,0.405002]
[1724259169597,0.166691,59992.0,59987.0,0.405002]
[1724259169825,0.166691,59992.0,59988.0,0.166699]
[1724259170274,0.166686,59993.0,59989.0,0.166696]
[1724259170528,0.001,59992.0,59989.0,0.166696]
[1724259170976,0.002,59992.0,59989.0,0.166696]
[1724259171263,0.002,59992.0,59987.0,0.571701]
[1724259171264,0.166694,59990.0,59987.0,0.2383]
[1724259171523,0.166695,59990.0,59989.0,0.008]
[1724259171735,0.166694,59991.0,59989.0,0.008]
[1724259171952,0.166694,59990.0,59989.0,0.008]
[1724259172421,0.54288799,59990.0,59989.0,0.008]
[1724259172659,0.523082,59990.0,59989.0,0.008]
[1724259172902,0.189694,59990.0,59989.0,0.2351]
[1724259173124,0.001,59991.0,59989.0,0.2441]
[1724259173373,0.001,59991.0,59990.0,0.351194]
[1724259173605,0.001,59992.0,59991.0,0.166691]
[1724259173829,0.001,59992.0,59990.0,0.1845]
[1724259174583,0.02613867,59999.0,59998.0,0.399672]
[1724259174814,0.00761071,60008.0,59998.0,0.233]
[1724259174815,0.166664,60001.0,59998.0,0.233]
[1724259175275,0.166666,60000.0,59998.0,0.233]
[1724259175502,0.166665,60001.0,59998.0,0.233]
[1724259175724,0.166665,60001.0,59993.0,0.333369]
[1724259175725,0.01791072,60001.0,59992.0,0.2398]
[1724259175981,0.166682,59995.0,59992.0,0.2398]
[1724259176673,0.166686,59993.0,59992.0,0.2398]
[1724259177385,0.500058,59993.0,59992.0,0.2428]
[1724259177614,0.166686,59993.0,59992.0,0.2428]
[1724259178521,0.166686,59993.0,59992.0,0.2548]
[1724259179025,0.02613744,60002.0,59995.0,0.166679]
[1724259179257,0.02613744,60002.0,59993.0,0.333372]
[1724259179488,0.166666,60000.0,59994.0,0.166681]
[1724259179712,0.166666,60000.0,59995.0,0.16668]
[1724259180040,0.166666,60000.0,59992.0,0.2628]
[1724259180041,0.333315,60004.0,59992.0,0.2628]
[1724259180042,0.10420782,60008.0,59992.0,0.2518]
[1724259180281,0.333352,59997.0,59992.0,0.2398]
[1724259180496,0.644518,60003.0,59988.0,0.2358]
[1724259180497,0.333372,59993.0,59988.0,0.2358]
[1724259180736,0.166685,59994.0,59989.0,0.166696]
[1724259180982,0.166692,59991.0,59988.0,0.2358]
[1724259182519,0.166692,59991.0,59988.0,0.1958]
[1724259182769,0.333361,59995.0,59985.0,0.3343191]
[1724259182770,0.023,59990.0,59985.0,0.3343191]
[1724259183010,0.166686,59993.0,59988.0,0.1667]
[1724259183237,0.166685,59994.0,59990.0,0.166694]
[1724259183481,0.166682,59995.0,59990.0,0.166694]
[1724259184646,0.166682,59995.0,59990.0,0.177694]
[1724259185129,0.166682,59995.0,59991.0,0.166691]
[1724259185608,0.166675,59997.0,59992.0,0.166687]
[1724259185849,0.023,59996.0,59990.0,0.2473]
[1724259186088,0.189678,59996.0,59991.0,0.166689]
[1724259186340,0.83471564,60003.0,59990.0,0.2453]
[1724259186593,0.83471564,60003.0,59993.0,0.359084]
[1724259186594,0.166674,59998.0,59993.0,0.359084]
[1724259186831,0.166674,59998.0,59994.0,0.166682]
[1724259187302,0.0956336,59998.0,59992.0,0.007]
[1724259187575,0.16669,59992.0,59988.0,0.166699]
[1724259187812,0.333372,59994.0,59987.0,0.1667]
[1724259188065,0.166688,59992.0,59987.0,0.1667]
[1724259188341,0.02613777,60003.0,60002.0,1.083544]
[1724259188585,0.000821,60026.0,60002.0,1.083544]
[1724259188586,0.000821,60026.0,60012.0,0.868465]
[1724259188820,0.000821,60026.0,60012.0,1.25596798]
[1724259189075,0.000821,60026.0,60012.0,1.25696798]
[1724259189339,0.000821,60026.0,60012.0,1.25596798]
[1724259189565,0.000821,60026.0,60012.0,1.58923398]
[1724259190038,0.000821,60026.0,60012.0,1.60323398]
[1724259190302,0.000821,60026.0,60012.0,1.28396798]
[1724259190815,0.000821,60026.0,60012.0,1.26996798]
[1724259191494,0.333213,60022.0,60012.0,0.014]
[1724259191724,0.334052,60019.0,60012.0,0.014]
[1724259191956,0.2301,60017.0,60012.0,0.014]
[1724259192178,0.500712,60013.0,60012.0,0.014]
[1724259192464,0.190451,60013.0,60012.0,0.014]
[1724259192908,0.000821,60013.0,60012.0,0.014]
[1724259193387,0.576382,60013.0,60005.0,0.166652]
[1724259193632,0.023,60012.0,60005.0,0.166652]
[1724259193858,0.023,60012.0,60003.0,0.166656]
[1724259193859,0.333279,60010.0,60003.0,0.166656]
[1724259194089,0.023,60012.0,59998.0,0.500013]
[1724259194090,0.166654,60005.0,59998.0,0.500013]
[1724259194325,0.166654,60005.0,59995.0,0.564359]
[1724259194326,0.333295,60007.0,59999.0,0.166668]
[1724259194560,0.023,60004.0,59999.0,0.166668]
[1724259194779,0.189657,60004.0,59999.0,0.166668]
[1724259195017,0.023,60004.0,60001.0,0.166663]
[1724259195258,0.629297,60016.0,59995.0,0.231]
[1724259195259,0.333268,60012.0,60003.0,0.008]
[1724259195513,0.166648,60007.0,60003.0,0.008]
[1724259196024,0.333283,60009.0,60003.0,0.008]
[1724259196299,0.166653,60005.0,60003.0,0.008]
[1724259196529,0.023,60004.0,60000.0,0.166665]
[1724259197211,0.023,60004.0,60003.0,0.01]
[1724259197653,0.023,60004.0,60003.0,0.013]
[1724259197904,0.522966,60004.0,60003.0,0.013]
[1724259198149,0.001,60018.0,59993.0,0.33337]
[1724259198150,0.334086,60013.0,59994.0,0.2412]
[1724259198389,0.16665,60006.0,60000.0,0.166664]
[1724259198630,0.16665,60006.0,60003.0,0.014]
[1724259199144,0.333285,60009.0,60003.0,0.014]
[1724259199372,0.166649,60007.0,60003.0,0.014]
[1724259199592,0.18965,60006.0,60003.0,0.014]
[1724259199821,0.16665,60006.0,60003.0,0.014]
[1724259200035,0.023,60008.0,60003.0,0.333316]
[1724259200319,0.000821,60013.0,60004.0,0.2337]
[1724259200563,0.000821,60013.0,60007.0,0.333293]
[1724259200810,0.000821,60013.0,60010.0,0.166637]
[1724259201053,0.000821,60013.0,60010.0,0.166636]
[1724259201282,0.000821,60013.0,60008.0,0.166642]
[1724259201508,0.000821,60013.0,60009.0,0.166641]
[1724259201747,0.000821,60013.0,60010.0,0.166636]
[1724259202220,0.000821,60013.0,60008.0,0.166642]
[1724259202453,0.000821,60013.0,60009.0,0.16664]
[1724259202884,0.900821,60013.0,60009.0,0.16664]
[1724259203337,0.900821,60013.0,60010.0,0.004]
[1724259203603,0.900821,60013.0,60010.0,0.01]